bitfinex/quotes_ETHUSD_20251201
["timestamp","ask_amount","ask_price","bid_price","bid_amount"]
[1764598080645,0.4642,2813.8,2813.0,0.001]
[1764598081295,0.4642,2813.8,2813.0,0.227]
[1764598081296,0.4827,2813.1,2813.0,0.227]
[1764598081645,0.4642,2813.3,2813.0,0.227]
[1764598082791,3.79,2814.1,2813.0,0.227]
[1764598083013,0.1892,2813.9,2813.0,0.227]
[1764598083300,3.74299046,2813.9,2813.1,3.55479719]
[1764598083461,0.4642,2813.8,2813.1,3.55479719]
[1764598084074,0.1892,2813.9,2813.1,7.10959438]
[1764598084305,0.4642,2813.8,2813.1,7.84325382]
[1764598084597,0.4642,2813.8,2813.2,0.226]
[1764598084771,0.4642,2814.2,2813.2,0.226]
[1764598085098,0.4642,2814.2,2813.3,1.1624051]
[1764598085405,0.4642,2814.2,2813.4,7.10883628]
[1764598085764,0.002,2814.3,2813.4,10.66325442]
[1764598087192,0.4642,2814.2,2813.4,7.10883628]
[1764598087768,0.002,2814.3,2813.4,7.10883628]
[1764598087992,0.002,2814.3,2813.5,0.82712414]
[1764598088168,0.002,2814.3,2813.6,0.226]
[1764598088795,0.4662,2814.3,2813.6,0.226]
[1764598088974,0.002,2814.3,2813.6,0.226]
[1764598089464,0.002,2814.3,2813.8,0.72559411]
[1764598089659,0.002,2814.3,2813.9,1.13877116]
[1764598089858,0.002,2814.3,2814.0,0.226]
[1764598091664,0.002,2814.3,2814.2,0.72559411]
[1764598092485,0.002,2814.3,2814.2,0.95159411]
[1764598093564,0.002,2814.3,2814.2,4.50500182]
[1764598093764,0.002,2814.3,2814.2,5.3108554]
[1764598095670,0.002,2814.3,2814.2,4.50500182]
[1764598095872,0.002,2814.3,2814.2,3.77940771]
[1764598096272,0.002,2814.3,2814.2,4.50500182]
[1764598099122,0.6879,2815.8,2814.3,1.13109811]
[1764598099287,0.1892,2817.1,2814.9,8.98003626]
[1764598099636,0.1892,2817.1,2814.4,0.405504]
[1764598099637,0.1812,2816.6,2815.3,9.38554026]
[1764598099793,0.6727,2816.6,2815.6,0.72559411]
[1764598100120,0.6727,2816.6,2815.7,1.49326621]
[1764598100316,0.1812,2816.6,2815.8,0.226]
[1764598100617,0.1892,2817.1,2815.8,0.95159411]
[1764598100817,0.6807,2817.1,2815.8,0.95159411]
[1764598101185,0.6807,2817.1,2815.9,0.405504]
[1764598101391,0.6799,2817.1,2815.9,0.405504]
[1764598101685,0.4915,2817.0,2815.8,0.95159411]
[1764598101885,0.1884,2817.1,2816.0,0.72559411]
[1764598102219,0.1884,2817.1,2816.1,0.405504]
[1764598102402,0.1884,2817.1,2816.2,0.226]
[1764598102603,0.6799,2817.1,2816.2,0.226]
[1764598103095,0.4864,2817.0,2816.2,0.226]
[1764598103791,0.4864,2817.0,2816.1,7.10202052]
[1764598104013,0.4864,2817.0,2816.2,0.226]
[1764598104318,0.4864,2817.0,2816.3,0.226]
[1764598104614,0.1884,2817.1,2816.3,0.226]
[1764598104615,0.6748,2817.1,2816.3,0.226]
[1764598105019,0.4864,2817.0,2816.2,1.81350467]
[1764598105199,0.4864,2817.0,2816.4,0.226]
[1764598105794,0.4508,2816.5,2816.3,7.10151616]
[1764598105996,0.4508,2816.4,2816.3,3.55075808]
[1764598106322,0.4508,2816.4,2816.3,0.226]
[1764598106529,0.9372,2816.4,2816.3,0.226]
[1764598107419,0.6748,2817.1,2816.3,0.226]
[1764598107786,0.4864,2817.0,2816.4,10.65189603]
[1764598108190,0.4864,2817.0,2816.5,0.226]
[1764598109601,0.1884,2817.1,2816.5,1.3137896]
[1764598109785,0.6748,2817.1,2816.6,7.10075978]
[1764598109989,0.6748,2817.1,2816.6,10.65113967]
[1764598110220,3.55076438,2817.9,2816.7,0.72559411]
[1764598110221,0.4864,2817.7,2816.7,0.72559411]
[1764598110409,0.4864,2817.8,2817.0,0.72559411]
[1764598110615,0.4864,2817.8,2817.1,0.226]
[1764598111121,0.002,2817.9,2817.1,0.226]
[1764598111307,0.4864,2817.8,2817.0,0.72559411]
[1764598111510,0.4864,2817.8,2817.2,0.226]
[1764598111917,0.4864,2817.8,2817.3,7.09899548]
[1764598112227,0.4864,2817.8,2817.3,10.64849322]
[1764598112518,0.4508,2817.4,2817.3,3.54949774]
[1764598112717,0.4508,2817.4,2817.3,3.77549774]
[1764598112908,0.9372,2817.4,2817.3,3.77549774]
[1764598113494,0.4508,2817.4,2817.3,3.77549774]
[1764598113923,0.9372,2817.4,2817.3,3.77549774]
[1764598114525,0.9372,2817.4,2817.3,0.226]
[1764598114824,0.9372,2817.4,2817.3,3.77549774]
[1764598116436,0.9372,2817.4,2816.6,7.10075978]
[1764598116724,0.4921,2817.2,2816.6,7.10075978]
[1764598116925,0.4921,2817.2,2816.7,0.226]
[1764598117127,0.4821,2817.1,2816.7,0.226]
[1764598117333,0.6872,2816.8,2816.7,0.226]
[1764598117697,1.1693,2816.8,2816.7,0.226]
[1764598117893,1.1693,2816.8,2816.5,4.63823783]
[1764598118132,1.1693,2816.8,2814.8,3.55256364]
[1764598118133,0.4921,2816.6,2815.7,7.10294341]
[1764598118298,0.4921,2816.1,2815.9,0.226]
[1764598118793,0.9742,2816.1,2816.0,0.226]
[1764598120220,0.9742,2816.1,2816.0,3.77713636]
[1764598121125,0.4821,2816.4,2816.0,7.32827272]
[1764598121542,0.4821,2816.4,2816.0,7.10227272]
[1764598121702,0.4821,2816.4,2816.1,0.226]
[1764598122115,0.4921,2816.2,2816.1,0.226]
[1764598122312,0.4921,2816.2,2816.1,3.77701026]
[1764598123427,0.4821,2816.4,2816.1,3.77701026]
[1764598123626,0.6772,2816.8,2816.1,11.61184544]
[1764598123828,0.4921,2816.2,2816.1,3.77701026]
[1764598124525,0.4813,2816.4,2816.1,7.32802052]
[1764598124928,0.4921,2816.2,2816.1,3.55101026]
[1764598125130,0.4921,2816.2,2815.9,3.55116607]
[1764598125297,0.6872,2815.9,2815.8,0.001]
[1764598125498,0.6872,2815.9,2815.8,0.227]
[1764598125920,0.1951,2816.1,2815.8,3.77838859]
[1764598126120,0.1951,2816.1,2815.8,7.70761604]
[1764598126903,0.4821,2816.4,2815.8,11.25900463]
[1764598127214,0.4921,2815.9,2815.8,0.001]
[1764598127398,0.9742,2815.9,2815.8,0.227]
[1764598127997,0.9742,2815.9,2815.8,3.77838859]
[1764598128402,0.9742,2815.9,2815.8,0.001]
[1764598128717,0.9742,2815.9,2815.8,3.77838859]
[1764598129439,0.9742,2815.9,2815.8,0.227]
[1764598129942,0.9742,2815.9,2815.8,0.001]
[1764598130311,1.426728,2815.9,2815.8,0.001]
[1764598130515,0.9742,2815.9,2815.8,0.001]
[1764598132938,0.9742,2815.9,2815.8,0.227]
[1764598134537,0.491,2815.9,2815.8,3.77830674]
[1764598135644,0.4916,2816.1,2815.8,3.77830674]
[1764598135943,0.4916,2816.1,2815.8,7.32969533]
[1764598136644,0.491,2815.9,2815.8,3.55230674]
[1764598136942,0.491,2815.9,2815.8,3.77830674]
[1764598137144,3.79,2816.2,2815.8,7.32969533]
[1764598137357,0.4916,2816.1,2815.8,7.32969533]
[1764598137716,3.74529576,2816.8,2816.0,8.98003626]
[1764598137717,0.1951,2816.8,2816.0,8.98003626]
[1764598137932,0.6887,2817.4,2816.5,8.98003626]
[1764598138116,0.4916,2817.3,2816.6,1.12400363]
[1764598138433,0.1971,2817.4,2816.6,0.226]
[1764598138651,0.6887,2817.4,2816.7,10.65076152]
[1764598138855,0.1971,2817.4,2816.7,14.20101536]
[1764598139058,0.1971,2817.4,2816.8,1.44270154]
[1764598140321,0.002,2817.4,2816.8,2.16829565]
[1764598140757,0.002,2817.4,2816.9,10.65000531]
[1764598140945,0.002,2817.4,2817.0,0.226]
[1764598141357,0.002,2817.4,2817.0,0.95159411]
[1764598141563,0.002,2817.4,2817.1,1.16015994]
[1764598142646,0.002,2817.4,2817.2,7.09924746]
[1764598143216,0.002,2817.4,2817.3,9.70563037]
[1764598144714,0.002,2817.7,2817.3,20.35412359]
[1764598144927,0.002,2817.9,2817.3,20.35412359]
[1764598144928,1e-08,2817.9,2817.5,0.72559411]
[1764598145132,1e-08,2817.9,2817.4,2.90083206]
[1764598145133,1e-08,2817.9,2817.8,9.70563037]
[1764598145328,0.002,2818.2,2817.9,0.72559411]
[1764598146022,1e-08,2818.3,2818.0,30.0]
[1764598146349,1e-08,2818.3,2818.2,16.68893678]
[1764598146522,1e-08,2818.3,2818.2,10.49610878]
[1764598146848,1e-08,2818.3,2818.2,21.01417798]
[1764598147224,1e-08,2818.3,2818.2,19.83617798]
[1764598147425,0.00120001,2818.5,2818.2,23.38454218]
[1764598147626,0.00120001,2818.5,2818.3,1.44270154]
[1764598147821,0.00120001,2818.5,2818.3,2.16829565]
[1764598148043,1e-08,2818.9,2818.6,11.550223]
[1764598148231,1e-08,2818.9,2818.8,9.54451467]
[1764598148951,1e-08,2818.9,2818.8,18.83515469]
[1764598149153,1e-08,2818.9,2818.8,19.99531463]
[1764598149652,1e-08,2818.9,2818.8,17.22605063]
[1764598150056,0.4936,2819.8,2818.9,0.72559411]
[1764598150252,0.002,2819.8,2819.4,9.54451467]
[1764598150459,0.1888,2820.0,2819.4,9.54451467]
[1764598150460,0.002,2820.2,2819.5,1.90604558]
[1764598150633,0.6824,2820.7,2820.2,0.72559411]
[1764598150634,0.1908,2820.7,2820.2,0.72559411]
[1764598150954,0.1908,2820.7,2820.3,4.49731619]
[1764598151656,0.1908,2820.7,2820.4,0.72559411]
[1764598151657,0.002,2820.7,2820.4,0.72559411]
[1764598151841,1e-08,2820.7,2820.5,4.06465483]
[1764598152041,0.1888,2821.4,2820.7,0.72559411]
[1764598152231,0.1888,2821.7,2820.9,0.72559411]
[1764598152434,0.1888,2821.7,2821.2,0.72559411]
[1764598152635,0.4916,2821.6,2821.2,1.77520499]
[1764598152951,0.4916,2821.6,2821.1,9.54451467]
[1764598152952,0.4916,2821.6,2821.3,3.77046531]
[1764598153157,0.1888,2821.7,2821.3,7.31493062]
[1764598153341,0.1888,2822.0,2821.6,9.54451467]
[1764598153553,0.1888,2822.0,2821.7,0.226]
[1764598153862,0.6804,2822.0,2821.7,0.226]
[1764598154035,0.491,2821.8,2821.4,0.72559411]
[1764598154358,0.491,2821.4,2821.1,3.54471659]
[1764598154663,0.491,2821.2,2820.7,3.54521927]
[1764598154830,0.1888,2820.8,2820.7,3.54521927]
[1764598155030,0.1888,2820.8,2820.7,4.27081338]
[1764598155458,1.1714,2820.8,2820.1,9.54451467]
[1764598155629,0.1888,2821.2,2820.6,9.54451467]
[1764598155829,0.1888,2820.9,2820.7,0.226]
[1764598156041,0.6804,2820.9,2820.7,0.226]
[1764598156362,0.491,2820.8,2820.1,12.83088983]
[1764598156660,0.491,2820.7,2820.1,11.93378583]
[1764598156853,0.491,2820.7,2820.4,0.72559411]
[1764598157163,0.491,2820.7,2820.5,0.226]
[1764598157461,0.9826,2820.7,2820.5,0.226]
[1764598157633,0.491,2820.6,2820.5,0.226]
[1764598157964,0.9826,2820.6,2820.5,0.226]
[1764598158359,0.491,2820.6,2820.5,0.226]
[1764598158858,0.9826,2820.6,2820.5,3.77147066]
[1764598159059,0.6804,2820.9,2820.5,7.31694132]
[1764598159264,0.9826,2820.6,2820.5,3.77147066]
[1764598159433,0.9826,2820.6,2820.5,3.54547066]
[1764598159752,0.6804,2820.9,2820.5,10.86241198]
[1764598160664,0.4916,2820.8,2820.5,10.86241198]
[1764598160961,0.1888,2821.2,2820.6,10.27010878]
[1764598161548,0.1888,2821.5,2821.1,9.54451467]
[1764598161748,0.4916,2821.8,2821.2,1.90604558]
[1764598162748,0.1888,2822.1,2821.2,1.90604558]
[1764598162953,0.1888,2822.1,2821.4,0.72559411]
[1764598163262,0.1888,2822.1,2821.4,2.05209767]
[1764598163564,0.6523,2822.0,2821.4,2.05209767]
[1764598164359,0.6523,2822.0,2821.6,9.54451467]
[1764598164577,0.1908,2822.0,2821.7,0.95159411]
[1764598164735,0.002,2822.0,2821.7,0.95159411]
[1764598165065,0.002,2822.0,2821.9,3.54371168]
[1764598165536,0.002,2822.0,2821.9,4.26930579]
[1764598165736,0.4919,2822.0,2821.9,4.49530579]
[1764598165930,0.002,2822.0,2821.9,4.49530579]
[1764598170564,0.0012,2822.0,2821.9,4.49530579]
[1764598170878,0.0012,2822.0,2821.9,10.27206567]
[1764598171252,0.0012,2822.0,2821.9,8.98743127]
[1764598172398,0.0012,2822.0,2821.9,9.98110604]
[1764598172784,0.002,2822.3,2822.0,0.72559411]
[1764598172988,0.002,2822.3,2822.2,10.27010878]
[1764598173297,0.002,2822.6,2822.4,0.72559411]
[1764598173496,0.002,2822.6,2822.5,0.226]
[1764598173971,0.4919,2822.6,2822.5,0.226]
[1764598174173,0.002,2822.6,2822.5,0.226]
[1764598175404,0.002,2822.6,2822.5,4.49455248]
[1764598175605,0.4849,2823.5,2823.0,0.72559411]
[1764598175790,0.1888,2824.0,2823.1,0.226]
[1764598175988,0.4849,2823.9,2823.1,0.226]
[1764598176713,0.4955,2823.2,2823.0,0.72559411]
[1764598176995,0.4955,2823.1,2822.6,0.72559411]
[1764598177163,0.1813,2822.6,2822.5,4.44608854]
[1764598177516,0.405504,2823.7,2822.5,11.75800528]
[1764598177665,0.405504,2823.7,2822.5,8.21504691]
[1764598177666,0.1813,2822.8,2822.5,8.21504691]
[1764598178293,0.1813,2822.8,2822.5,8.94064102]
[1764598178490,0.405504,2823.9,2822.6,0.72559411]
[1764598178694,0.4849,2823.9,2822.9,9.54451467]
[1764598178998,0.4849,2823.9,2823.0,0.95159411]
[1764598179364,0.4849,2823.9,2823.3,0.72559411]
[1764598179574,0.4849,2823.9,2823.4,0.226]
[1764598180878,0.4849,2823.9,2823.4,9.77051467]
[1764598181279,0.4849,2823.9,2823.4,10.55431243]
[1764598181480,0.4849,2823.9,2823.5,10.62511065]
[1764598182090,0.4955,2823.6,2823.5,3.54170355]
[1764598182294,0.4955,2823.6,2823.5,3.76670355]
[1764598182472,0.9804,2823.6,2823.5,3.76670355]
[1764598183815,0.9804,2823.6,2823.1,9.54451467]
[1764598184138,0.4955,2823.2,2822.7,10.62812199]
[1764598184292,0.4955,2823.2,2822.8,0.95059411]
[1764598184480,0.4849,2823.1,2822.8,0.95059411]
[1764598184675,0.6768,2822.9,2822.7,7.08541466]
[1764598185000,0.4955,2822.8,2822.7,4.26830144]
[1764598185208,0.9804,2822.8,2822.7,4.49330144]
[1764598185411,0.1813,2822.9,2822.8,4.26817594]
[1764598185885,1.1617,2822.9,2822.8,4.26817594]
[1764598186095,1.1617,2822.9,2822.8,3.54258183]
[1764598186980,0.6768,2822.9,2822.8,3.54258183]
[1764598187492,0.1813,2822.9,2822.8,3.54258183]
[1764598188222,0.6768,2822.9,2822.8,3.76758183]
[1764598188523,0.6768,2822.9,2822.6,9.54451467]
[1764598188524,1.1617,2822.9,2822.6,7.08561972]
[1764598188683,0.1813,2822.9,2822.8,0.225]
[1764598188883,0.405504,2823.9,2822.8,0.73106197]
[1764598189085,0.1888,2824.0,2823.8,9.54451467]
[1764598189287,0.6737,2824.0,2823.9,0.226]
[1764598189529,1.1692,2824.0,2823.9,0.227]
[1764598189991,0.1826,2824.3,2823.9,0.227]
[1764598190196,0.6675,2824.3,2823.9,1.20415147]
[1764598190398,0.6675,2824.3,2823.9,1.92974558]
[1764598190611,0.1826,2824.3,2823.9,1.92974558]
[1764598191017,0.6675,2824.3,2823.9,1.70274558]
[1764598191222,0.4849,2824.2,2824.0,0.227]
[1764598191522,0.4849,2824.2,2824.1,3.54095109]
[1764598191691,0.9804,2824.1,2823.9,3.54120188]
[1764598191890,0.4955,2824.0,2823.6,7.08315624]
[1764598192093,0.4849,2824.0,2822.7,7.08541466]
[1764598192317,0.586804,2823.9,2822.8,0.227]
[1764598192598,0.1813,2822.9,2822.8,0.227]
[1764598193130,0.1813,2822.9,2822.8,0.95259411]
[1764598193328,0.4534,2823.7,2822.8,0.95259411]
[1764598193496,0.1805,2823.9,2823.3,0.72559411]
[1764598193702,0.4534,2823.8,2823.4,0.227]
[1764598195034,0.4534,2823.8,2823.5,0.227]
[1764598195435,0.1805,2823.9,2823.6,7.08315624]
[1764598195635,0.1805,2823.9,2823.6,3.54157812]
[1764598195636,0.4768,2823.7,2823.6,3.54157812]
[1764598196139,0.9302,2823.7,2823.6,3.76857812]
[1764598198837,0.1805,2823.9,2823.6,7.31015624]
[1764598199034,0.1846,2824.3,2823.8,9.54451467]
[1764598199417,0.1846,2824.3,2823.9,0.72559411]
[1764598199633,0.1846,2824.3,2824.1,7.08190218]
[1764598200232,0.002,2824.3,2824.1,7.08190218]
[1764598200539,0.002,2824.3,2824.2,0.73089022]
[1764598200932,0.9322,2824.3,2824.1,7.08190218]
[1764598201242,0.4768,2824.2,2824.1,3.54095109]
[1764598201539,0.9302,2824.2,2824.1,3.76795109]
[1764598201739,0.002,2824.3,2824.1,7.30890218]
[1764598202043,0.002,2824.3,2824.2,1.08499662]
[1764598202243,0.002,2824.3,2824.2,1.81059073]
[1764598203763,0.9322,2824.3,2823.9,3.54120188]
[1764598203964,0.4768,2823.7,2823.3,9.54451467]
[1764598204244,0.4768,2823.7,2823.4,7.309658]
[1764598204461,0.4768,2823.7,2823.4,3.767829]
[1764598204462,0.4534,2823.6,2823.4,3.767829]
[1764598204752,0.4534,2823.6,2823.4,7.309658]
[1764598205846,0.4768,2823.5,2823.4,3.767829]
[1764598206145,0.4768,2823.5,2823.4,3.541829]
[1764598206446,0.4768,2823.5,2823.4,3.767829]
[1764598206622,0.9302,2823.5,2823.4,3.767829]
[1764598207345,0.1867,2823.8,2823.4,10.851487]
[1764598207513,0.6401,2823.8,2823.4,11.5824641]
[1764598207715,0.1867,2823.8,2823.4,11.5824641]
[1764598207919,0.6401,2823.8,2823.4,11.5824641]
[1764598208232,0.1867,2824.0,2823.4,15.1242931]
[1764598208417,0.002,2824.3,2823.9,8.9061741]
[1764598208616,0.002,2824.3,2824.0,0.226]
[1764598209041,0.002,2824.3,2823.9,8.9061741]
[1764598209042,0.4768,2824.1,2823.9,8.9061741]
[1764598209218,0.4554,2824.3,2824.0,0.226]
[1764598209421,0.4554,2824.3,2823.9,8.9061741]
[1764598209627,0.4554,2824.3,2824.0,0.226]
[1764598209835,0.4054,2824.3,2824.1,7.08190218]
[1764598210132,0.4054,2824.3,2823.5,3.19247489]
[1764598210133,0.4768,2824.2,2823.5,12.09864899]
[1764598210340,0.4054,2824.3,2823.6,3.54156466]
[1764598210659,0.002,2824.2,2823.7,0.226]
[1764598210826,0.1887,2824.2,2823.5,15.98954382]
[1764598211026,0.1887,2824.2,2823.6,0.226]
[1764598211231,0.1887,2824.2,2823.5,12.44784027]
[1764598211232,0.4768,2823.6,2823.5,12.44784027]
[1764598211439,0.4768,2823.6,2823.5,12.67384027]
[1764598211640,0.002,2824.2,2823.6,9.30155211]
[1764598211862,0.002,2824.2,2824.1,13.1727193]
[1764598212158,0.002,2824.2,2824.1,13.3997193]
[1764598214459,0.002,2824.5,2824.3,0.72559411]
[1764598215168,0.4768,2824.4,2824.3,0.72559411]
[1764598215327,0.9302,2824.4,2824.1,19.52902737]
[1764598215532,0.4768,2824.4,2824.2,0.95259411]
[1764598215752,0.9302,2824.4,2824.2,0.95259411]
[1764598215971,0.4534,2825.6,2824.6,0.72559411]
[1764598216136,0.4534,2825.6,2824.5,16.61392489]
[1764598216137,0.1887,2824.9,2824.8,9.63176821]
[1764598216332,0.002,2824.9,2824.8,9.85876821]
[1764598216640,0.4526,2825.9,2824.9,0.72559411]
[1764598216841,0.405504,2825.9,2825.0,0.227]
[1764598217041,0.19979587,2826.1,2825.0,1.21287682]
[1764598217246,0.1867,2826.4,2825.0,1.21287682]
[1764598217465,0.72559411,2826.3,2825.0,1.21287682]
[1764598217958,0.72559411,2826.3,2825.2,7.07914482]
[1764598218177,0.50540193,2825.9,2825.2,3.53957241]
[1764598218376,0.4768,2825.3,2825.2,3.53957241]
[1764598218731,0.9302,2825.3,2825.2,3.53957241]
[1764598218935,0.4534,2825.7,2825.2,10.84571723]
[1764598219143,0.4534,2825.7,2825.2,10.61871723]
[1764598219353,0.4534,2825.7,2825.3,0.227]
[1764598219635,0.4534,2825.7,2825.4,0.227]
[1764598220059,0.4768,2825.5,2825.4,3.76632186]
[1764598220259,0.4768,2825.5,2825.4,3.53932186]
[1764598220461,0.9302,2825.5,2825.4,0.227]
[1764598220936,0.9302,2825.5,2825.4,3.76632186]
[1764598222050,0.9302,2825.5,2824.3,7.08130223]
[1764598222051,0.405504,2825.4,2824.3,7.08130223]
[1764598222260,0.1867,2824.9,2824.3,10.62200258]
[1764598222464,0.1867,2824.9,2824.4,0.227]
[1764598222667,0.4534,2824.8,2824.4,0.227]
[1764598222873,0.4534,2824.8,2824.4,1.31190026]
[1764598223255,0.4614,2824.5,2824.3,3.54060188]
[1764598223470,0.4614,2824.4,2824.3,3.54060188]
[1764598223665,0.4614,2824.4,2824.3,3.76660188]
[1764598223999,0.9335,2824.4,2824.3,0.226]
[1764598224358,0.9335,2824.4,2823.5,10.62511065]
[1764598224567,0.4721,2824.3,2823.6,0.226]
[1764598224770,0.4721,2824.3,2823.7,0.226]
[1764598225085,0.4721,2824.3,2823.5,12.57833913]
[1764598225385,0.4721,2824.3,2823.6,0.226]
[1764598225957,0.4721,2824.3,2823.6,2.39715132]
[1764598226153,0.4721,2824.3,2823.7,10.8503581]
[1764598226358,0.4721,2824.3,2823.8,8.9061741]
[1764598226689,0.4721,2824.6,2823.8,8.9061741]
[1764598226888,0.4721,2824.6,2823.8,11.45308772]
[1764598228055,0.4721,2824.6,2823.9,10.62360564]
[1764598230757,0.4614,2824.0,2823.6,3.54150075]
[1764598230986,0.4721,2824.6,2823.7,0.226]
[1764598230987,0.405504,2824.5,2823.7,0.226]
[1764598231290,0.1986,2823.9,2823.6,7.08307887]
[1764598231591,0.4614,2823.7,2823.6,3.54150075]
[1764598231765,0.1986,2824.1,2823.6,9.26239071]
[1764598231969,0.1986,2824.1,2823.6,12.80396883]
[1764598232178,0.6707,2824.1,2823.6,12.80396883]
[1764598233668,0.499,2824.6,2823.8,8.9061741]
[1764598233995,0.1867,2824.9,2824.4,8.9061741]
[1764598234202,0.1867,2824.9,2824.5,1.11661741]
[1764598234570,0.1867,2824.9,2824.6,7.08064858]
[1764598234769,0.499,2825.1,2824.6,10.62097287]
[1764598234961,0.1867,2826.0,2824.6,14.16129716]
[1764598235168,0.499,2825.4,2824.7,1.52779146]
[1764598235371,0.499,2825.4,2824.7,1.45793146]
[1764598235931,0.499,2825.4,2824.8,0.226]
[1764598236707,0.499,2825.4,2824.7,1.45793146]
[1764598236708,0.499,2825.4,2824.9,3.53994831]
[1764598237189,0.499,2825.4,2825.0,0.226]
[1764598237690,0.499,2825.7,2825.0,1.31059359]
[1764598238790,0.499,2825.7,2825.1,10.6190931]
[1764598239101,0.499,2825.7,2825.2,0.226]
[1764598239478,0.4982,2825.7,2825.1,10.6190931]
[1764598239698,0.4982,2825.7,2825.3,0.226]
[1764598239905,0.4717,2825.4,2825.1,10.6190931]
[1764598240204,0.4717,2825.4,2825.2,0.226]
[1764598240783,0.4717,2825.3,2825.2,3.76557241]
[1764598240983,0.4717,2825.3,2824.9,7.07989662]
[1764598241184,0.4717,2825.0,2824.9,3.53994831]
[1764598241372,0.4717,2825.0,2824.9,3.76594831]
[1764598242192,0.499,2825.6,2824.9,11.93046325]
[1764598242797,0.4717,2825.0,2824.6,3.54032429]
[1764598242982,0.184,2824.7,2824.6,3.54032429]
[1764598243179,0.683,2824.9,2824.6,7.30664858]
[1764598243377,0.499,2825.8,2824.6,10.84697287]
[1764598243612,0.499,2825.7,2824.6,12.91134931]
[1764598243792,0.405504,2825.6,2824.6,7.08064858]
[1764598243996,0.184,2824.7,2824.6,3.54032429]
[1764598244300,0.184,2824.7,2824.6,3.76632429]
[1764598244491,0.499,2825.1,2824.6,10.84697287]
[1764598244894,0.405504,2825.6,2824.6,7.30664858]
[1764598245204,0.499,2825.5,2824.6,10.84697287]
[1764598246504,0.405504,2825.8,2824.6,10.84697287]
[1764598246674,0.499,2825.5,2824.6,14.38729716]
[1764598248207,0.002,2825.9,2825.3,8.9061741]
[1764598248411,0.002,2825.9,2825.4,1.11661741]
[1764598248412,0.501,2825.9,2825.4,1.11661741]
[1764598248587,0.501,2825.9,2825.4,0.226]
[1764598248982,0.501,2825.9,2825.5,7.0783932]
[1764598249186,0.501,2825.9,2825.5,10.6175898]
[1764598249514,0.501,2825.9,2825.6,0.226]
[1764598250210,0.4717,2825.7,2825.6,0.226]
[1764598250582,0.9707,2825.7,2825.6,0.226]
[1764598251016,0.9707,2825.7,2825.6,3.76507134]
[1764598251511,0.002,2825.9,2825.6,8.03456947]
[1764598252023,0.501,2825.9,2825.6,8.03456947]
[1764598252816,0.4717,2825.7,2825.6,3.53907134]
[1764598253118,0.4717,2825.7,2825.6,3.76507134]
[1764598253312,0.9632,2825.7,2825.6,3.76507134]
[1764598253513,0.4717,2825.7,2825.6,3.76507134]
[1764598253824,0.002,2825.9,2825.6,7.30414268]
[1764598253996,0.4935,2825.9,2825.6,7.30414268]
[1764598254991,0.4525,2825.7,2825.6,3.76507134]
[1764598255398,0.944,2825.7,2825.6,3.76507134]
[1764598256092,0.944,2825.7,2825.6,0.226]
[1764598256295,0.944,2825.7,2825.6,3.76507134]
[1764598257219,0.002,2825.9,2825.6,7.30414268]
[1764598257421,0.1967,2825.9,2825.7,1.08433262]
[1764598257721,0.002,2825.9,2825.8,9.63176821]
[1764598257924,0.002,2825.9,2825.8,10.14494461]
[1764598258220,0.002,2825.9,2825.8,9.63176821]
[1764598258440,0.002,2825.9,2825.6,7.30414268]
[1764598258441,1.1407,2825.9,2825.6,7.07814268]
[1764598258623,1.1407,2825.9,2825.8,0.226]
[1764598258624,0.6882,2825.9,2825.8,0.226]
[1764598258917,1.1407,2825.9,2825.8,0.226]
[1764598259293,1.1407,2825.9,2825.8,3.76482086]
[1764598259694,1.1407,2825.9,2825.1,3.5396977]
[1764598259894,0.4525,2825.2,2825.1,3.5396977]
[1764598260126,0.4525,2825.2,2825.1,4.47364847]
[1764598260322,0.944,2825.2,2825.1,3.5396977]
[1764598260493,0.944,2825.2,2825.1,3.7656977]
[1764598261623,1.349504,2825.2,2825.1,0.226]
[1764598262732,0.405504,2825.1,2824.5,0.001]
[1764598263055,0.405504,2824.5,2824.0,0.001]
[1764598263342,0.6472,2824.6,2824.0,0.001]
[1764598263343,0.405504,2824.3,2824.0,0.001]
[1764598263494,0.858004,2824.1,2824.0,0.001]
[1764598263695,1.29787953,2824.1,2824.0,0.001]
[1764598263942,1.349504,2824.1,2824.0,0.001]
[1764598266605,1.54929987,2824.1,2824.0,0.001]
[1764598266821,2.27489398,2824.1,2824.0,0.001]
[1764598267298,1.54929987,2824.1,2824.0,0.001]
[1764598268293,0.405504,2824.0,2823.5,0.001]
[1764598268529,1.15260193,2823.6,2823.5,0.001]
[1764598268731,0.60529987,2823.5,2823.4,0.001]
[1764598269026,1.54929987,2823.5,2823.4,0.001]
[1764598270298,1.349504,2823.5,2823.4,0.001]
[1764598270943,0.4525,2823.5,2823.4,0.001]
[1764598271430,0.944,2823.5,2823.4,0.001]
[1764598271640,1.349504,2823.5,2823.4,0.001]
[1764598271998,1.5864736,2823.5,2823.4,0.001]
[1764598274537,1.68637153,2823.5,2823.4,0.001]
[1764598274737,1.78626947,2823.5,2823.4,0.001]
[1764598275242,1.5864736,2823.5,2823.4,0.001]
[1764598275534,1.349504,2823.5,2823.4,0.001]
[1764598276107,0.405504,2823.4,2823.3,0.001]
[1764598276305,0.858004,2823.1,2822.8,0.001]
[1764598276541,0.09989793,2822.7,2822.3,0.001]
[1764598276744,0.4525,2822.6,2822.3,0.001]
[1764598277037,0.944,2822.6,2822.3,0.001]
[1764598277412,0.405504,2822.5,2822.3,0.001]
[1764598277606,0.405504,2822.5,2822.0,0.001]
[1764598277607,0.50540193,2822.1,2822.0,0.001]
[1764598277818,1.349504,2822.1,2822.0,0.001]